[Event "*** Titled Tuesday 3|2 Blitz"]
[Site "Chess.com"]
[Date "2016.07.05"]
[Round "3"]
[White "dawtonlms"]
[Black "AungTZ"]
[Result "1-0"]
[WhiteElo "2165"]
[BlackElo "2125"]
[TimeControl "180+2"]
[EndTime "17:34:35 PDT"]
[Termination "dawtonlms won on time"]

1. e4 {[%clk 0:02:59.8]} 1... c5 {[%clk 0:02:59.9]} 2. Nf3 {[%clk 0:03:01]} 2...
Nc6 {[%clk 0:03:01.1]} 3. Bb5 {[%clk 0:03:00.2]} 3... e6 {[%clk 0:03:01.8]} 4.
Bxc6 {[%clk 0:03:00.6]} 4... bxc6 {[%clk 0:03:02.6]} 5. d3 {[%clk 0:03:01.7]}
5... d6 {[%clk 0:03:03.3]} 6. Qe2 {[%clk 0:03:02.5]} 6... e5 {[%clk 0:03:04.5]}
7. c3 {[%clk 0:03:02.9]} 7... Be7 {[%clk 0:03:04.9]} 8. h3 {[%clk 0:03:04.1]}
8... f5 {[%clk 0:03:05.9]} 9. Nbd2 {[%clk 0:03:04.2]} 9... Nf6 {[%clk
0:03:06.3]} 10. O-O {[%clk 0:03:05.3]} 10... O-O {[%clk 0:03:06.9]} 11. Re1
{[%clk 0:03:06.4]} 11... Kh8 {[%clk 0:03:05.9]} 12. d4 {[%clk 0:03:07.2]} 12...
fxe4 {[%clk 0:03:01.7]} 13. Nxe4 {[%clk 0:02:56.7]} 13... Nxe4 {[%clk
0:02:45.4]} 14. Qxe4 {[%clk 0:02:56.5]} 14... cxd4 {[%clk 0:02:40.1]} 15. cxd4
{[%clk 0:02:55.7]} 15... Bf5 {[%clk 0:02:36.4]} 16. Qxc6 {[%clk 0:02:53.2]}
16... e4 {[%clk 0:02:37.5]} 17. Nh2 {[%clk 0:02:44.9]} 17... d5 {[%clk
0:02:38.1]} 18. Nf1 {[%clk 0:02:37.4]} 18... Rc8 {[%clk 0:02:34.7]} 19. Qa6
{[%clk 0:02:35.7]} 19... Rf6 {[%clk 0:02:12.5]} 20. Qxa7 {[%clk 0:02:19.9]}
20... Rg6 {[%clk 0:02:05.7]} 21. Ng3 {[%clk 0:02:04.1]} 21... Be6 {[%clk
0:01:54.7]} 22. Bf4 {[%clk 0:02:02.6]} 22... h5 {[%clk 0:01:08.1]} 23. Nxh5
{[%clk 0:01:43.4]} 23... Bxh3 {[%clk 0:01:08.2]} 24. Ng3 {[%clk 0:01:44.6]}
24... Bg4 {[%clk 0:01:00.8]} 25. Rac1 {[%clk 0:01:41.5]} 25... Ra8 {[%clk
0:01:01.4]} 26. Qc7 {[%clk 0:01:33.6]} 26... Qf8 {[%clk 0:01:02.4]} 27. Be3
{[%clk 0:01:22.8]} 27... Bd6 {[%clk 0:00:58.3]} 28. Qc6 {[%clk 0:01:21]} 28...
Kh7 {[%clk 0:00:43.4]} 29. Qxd5 {[%clk 0:01:19.1]} 29... Bxg3 {[%clk 0:00:39.8]}
30. fxg3 {[%clk 0:01:21]} 30... Bf3 {[%clk 0:00:35.5]} 31. Bf4 {[%clk
0:01:16.9]} 31... Bxg2 {[%clk 0:00:34.2]} 32. Kxg2 {[%clk 0:01:16.4]} 32... Qxf4
{[%clk 0:00:33.5]} 33. Rh1+ {[%clk 0:01:16.5]} 1-0

[Event "*** Titled Tuesday 3|2 Blitz"]
[Site "Chess.com"]
[Date "2016.07.05"]
[Round "3"]
[White "Zenzo"]
[Black "saraswathii"]
[Result "1-0"]
[WhiteElo "2386"]
[BlackElo "2066"]
[TimeControl "180+2"]
[EndTime "17:35:29 PDT"]
[Termination "Zenzo won by checkmate"]

1. e4 {[%clk 0:03:01.9]} 1... c5 {[%clk 0:02:59.1]} 2. Nf3 {[%clk 0:03:02.7]}
2... e6 {[%clk 0:02:49.6]} 3. d4 {[%clk 0:03:03.5]} 3... cxd4 {[%clk 0:02:48.8]}
4. Nxd4 {[%clk 0:03:05.4]} 4... Nf6 {[%clk 0:02:48]} 5. Nc3 {[%clk 0:03:06.4]}
5... Nc6 {[%clk 0:02:48.7]} 6. Ndb5 {[%clk 0:03:06.4]} 6... Bb4 {[%clk
0:02:48.7]} 7. a3 {[%clk 0:03:02.6]} 7... Bxc3+ {[%clk 0:02:48.7]} 8. Nxc3
{[%clk 0:03:04.5]} 8... d5 {[%clk 0:02:48.3]} 9. exd5 {[%clk 0:03:06.4]} 9...
exd5 {[%clk 0:02:48.8]} 10. Bd3 {[%clk 0:03:07.5]} 10... d4 {[%clk 0:02:47.2]}
11. Ne2 {[%clk 0:03:08]} 11... O-O {[%clk 0:02:44.6]} 12. O-O {[%clk 0:03:08.8]}
12... Qd5 {[%clk 0:02:45.1]} 13. Nf4 {[%clk 0:02:22.2]} 13... Qd6 {[%clk
0:02:38.6]} 14. Nh5 {[%clk 0:02:21.4]} 14... Nxh5 {[%clk 0:02:35]} 15. Qxh5
{[%clk 0:02:23.3]} 15... h6 {[%clk 0:02:36.1]} 16. Re1 {[%clk 0:02:19.3]} 16...
Qf6 {[%clk 0:02:20.7]} 17. Bd2 {[%clk 0:02:00.1]} 17... Be6 {[%clk 0:02:20.5]}
18. Re4 {[%clk 0:01:58.1]} 18... Rfd8 {[%clk 0:02:09.4]} 19. Rf4 {[%clk
0:01:36.9]} 19... Qe5 {[%clk 0:02:07.3]} 20. Qf3 {[%clk 0:01:23.2]} 20... Bd5
{[%clk 0:01:57.6]} 21. Qg3 {[%clk 0:01:23.7]} 21... Kh8 {[%clk 0:01:48.3]} 22.
Re1 {[%clk 0:01:23]} 22... Qd6 {[%clk 0:01:45.1]} 23. Rh4 {[%clk 0:00:38.2]}
23... Qxg3 {[%clk 0:01:44.1]} 24. hxg3 {[%clk 0:00:39.1]} 24... Re8 {[%clk
0:01:45]} 25. Rxe8+ {[%clk 0:00:39.1]} 25... Rxe8 {[%clk 0:01:45.2]} 26. Bb5
{[%clk 0:00:37.6]} 26... Be4 {[%clk 0:01:41.3]} 27. c3 {[%clk 0:00:32.5]} 27...
dxc3 {[%clk 0:01:30.4]} 28. Bxc3 {[%clk 0:00:34.4]} 28... Kg8 {[%clk 0:01:25.4]}
29. f3 {[%clk 0:00:35.2]} 29... Bd5 {[%clk 0:01:25.1]} 30. Kf2 {[%clk
0:00:35.5]} 30... a6 {[%clk 0:01:24.4]} 31. Bf1 {[%clk 0:00:34.4]} 31... Bb3
{[%clk 0:01:11.4]} 32. Rg4 {[%clk 0:00:30.6]} 32... g6 {[%clk 0:01:05.3]} 33.
Rh4 {[%clk 0:00:31.8]} 33... Kh7 {[%clk 0:01:03.6]} 34. Bd2 {[%clk 0:00:30.1]}
34... h5 {[%clk 0:01:02.2]} 35. g4 {[%clk 0:00:31.4]} 35... Re5 {[%clk
0:01:00.6]} 36. gxh5 {[%clk 0:00:28.1]} 36... gxh5 {[%clk 0:00:49]} 37. Bc3
{[%clk 0:00:26.2]} 37... Rd5 {[%clk 0:00:46.8]} 38. g4 {[%clk 0:00:26.2]} 38...
Kg6 {[%clk 0:00:44.1]} 39. gxh5+ {[%clk 0:00:23.6]} 39... Rxh5 {[%clk
0:00:42.5]} 40. Bd3+ {[%clk 0:00:24.5]} 40... Kg5 {[%clk 0:00:42.2]} 41. Rg4+
{[%clk 0:00:25.8]} 41... Kh6 {[%clk 0:00:39.1]} 42. Bg7# {[%clk 0:00:27]} 1-0

[Event "*** Titled Tuesday 3|2 Blitz"]
[Site "Chess.com"]
[Date "2016.07.05"]
[Round "3"]
[White "destroyer305"]
[Black "Viaje"]
[Result "0-1"]
[WhiteElo "2200"]
[BlackElo "2125"]
[TimeControl "180+2"]
[EndTime "17:36:26 PDT"]
[Termination "Viaje won by checkmate"]

1. e4 {[%clk 0:03:00.5]} 1... c5 {[%clk 0:03:00.9]} 2. d4 {[%clk 0:03:01.3]}
2... cxd4 {[%clk 0:03:00.8]} 3. c3 {[%clk 0:03:03]} 3... Nf6 {[%clk 0:03:01.6]}
4. e5 {[%clk 0:03:04]} 4... Nd5 {[%clk 0:03:03.2]} 5. Nf3 {[%clk 0:03:05.6]}
5... e6 {[%clk 0:03:03.9]} 6. cxd4 {[%clk 0:03:04.9]} 6... b6 {[%clk 0:03:05.3]}
7. a3 {[%clk 0:03:06.4]} 7... Bb7 {[%clk 0:03:02.7]} 8. Bd3 {[%clk 0:03:07.4]}
8... d6 {[%clk 0:03:03.7]} 9. Ng5 {[%clk 0:03:04.6]} 9... g6 {[%clk 0:02:48.6]}
10. Qf3 {[%clk 0:02:53.2]} 10... Qe7 {[%clk 0:02:47.8]} 11. exd6 {[%clk
0:02:46.3]} 11... Qd7 {[%clk 0:02:48.2]} 12. Ne4 {[%clk 0:02:20]} 12... Bg7
{[%clk 0:02:41.8]} 13. Nbc3 {[%clk 0:02:14.1]} 13... Bxd4 {[%clk 0:01:47.2]} 14.
Nxd5 {[%clk 0:02:11.9]} 14... Bxd5 {[%clk 0:01:49.1]} 15. Nf6+ {[%clk
0:02:12.1]} 15... Bxf6 {[%clk 0:01:49.6]} 16. Qxf6 {[%clk 0:02:14]} 16... Rg8
{[%clk 0:01:50.5]} 17. Bf4 {[%clk 0:01:39.2]} 17... Bxg2 {[%clk 0:01:43.8]} 18.
Rc1 {[%clk 0:01:36.6]} 18... Nc6 {[%clk 0:01:33.3]} 19. Rg1 {[%clk 0:01:31.5]}
19... Bd5 {[%clk 0:01:33]} 20. Bb5 {[%clk 0:01:27.7]} 20... Rc8 {[%clk 0:01:29]}
21. Rg5 {[%clk 0:01:19.5]} 21... Qd8 {[%clk 0:00:58.9]} 22. Qc3 {[%clk
0:00:33.5]} 22... f5 {[%clk 0:00:54.6]} 23. Rg3 {[%clk 0:00:19.4]} 23... Kf7
{[%clk 0:00:51.1]} 24. Qd2 {[%clk 0:00:13.7]} 24... Qf6 {[%clk 0:00:28.2]} 25.
Bg5 {[%clk 0:00:13.4]} 25... Qe5+ {[%clk 0:00:25]} 26. Kf1 {[%clk 0:00:13.3]}
26... Qxd6 {[%clk 0:00:25.5]} 27. Qe3 {[%clk 0:00:07.9]} 27... Qe5 {[%clk
0:00:22.1]} 28. Qd2 {[%clk 0:00:08.3]} 28... Nd4 {[%clk 0:00:19.4]} 29. Re1
{[%clk 0:00:03.6]} 29... Qg7 {[%clk 0:00:17.3]} 30. Bd3 {[%clk 0:00:04.2]} 30...
Rge8 {[%clk 0:00:13.3]} 31. Bb1 {[%clk 0:00:03.1]} 31... Nc6 {[%clk 0:00:11.9]}
32. Bh6 {[%clk 0:00:04.4]} 32... Qf6 {[%clk 0:00:11.8]} 33. Bg5 {[%clk
0:00:05.8]} 33... Qh8 {[%clk 0:00:12.7]} 34. Bh6 {[%clk 0:00:06.9]} 34... Qd4
{[%clk 0:00:13.6]} 35. Qg5 {[%clk 0:00:07.1]} 35... Qxb2 {[%clk 0:00:11.2]} 36.
Qh4 {[%clk 0:00:07.2]} 36... Qd4 {[%clk 0:00:07.8]} 37. Bg5 {[%clk 0:00:07.9]}
37... Qxh4 {[%clk 0:00:08.6]} 38. Bxh4 {[%clk 0:00:09]} 38... Nd4 {[%clk
0:00:09.4]} 39. Bg5 {[%clk 0:00:09.1]} 39... e5 {[%clk 0:00:10]} 40. Rh3 {[%clk
0:00:10.3]} 40... h5 {[%clk 0:00:10.5]} 41. Rg3 {[%clk 0:00:10.4]} 41... e4
{[%clk 0:00:11.4]} 42. Be3 {[%clk 0:00:11.4]} 42... Nf3 {[%clk 0:00:12.2]} 43.
Rd1 {[%clk 0:00:11.5]} 43... Be6 {[%clk 0:00:12.2]} 44. h3 {[%clk 0:00:12.5]}
44... Red8 {[%clk 0:00:13.4]} 45. Rxd8 {[%clk 0:00:12.2]} 45... Rxd8 {[%clk
0:00:14.5]} 46. Kg2 {[%clk 0:00:10.5]} 46... Rd1 {[%clk 0:00:14.9]} 47. Bc2
{[%clk 0:00:11.4]} 47... Rg1# {[%clk 0:00:15.5]} 0-1

[Event "*** Titled Tuesday 3|2 Blitz"]
[Site "Chess.com"]
[Date "2016.07.05"]
[Round "3"]
[White "DiamondCrusher22"]
[Black "proxy6"]
[Result "0-1"]
[WhiteElo "1847"]
[BlackElo "1922"]
[TimeControl "180+2"]
[EndTime "17:36:35 PDT"]
[Termination "proxy6 won on time"]

1. e4 {[%clk 0:03:01.9]} 1... c5 {[%clk 0:02:58.7]} 2. Nf3 {[%clk 0:03:02.4]}
2... d6 {[%clk 0:02:59.8]} 3. c3 {[%clk 0:03:03]} 3... Nf6 {[%clk 0:02:57.9]} 4.
Be2 {[%clk 0:03:02.5]} 4... Bd7 {[%clk 0:02:57.4]} 5. d3 {[%clk 0:03:01.9]} 5...
g6 {[%clk 0:02:58.2]} 6. O-O {[%clk 0:03:02.5]} 6... Bg7 {[%clk 0:02:59.6]} 7.
Re1 {[%clk 0:03:03.5]} 7... O-O {[%clk 0:03:01]} 8. Nbd2 {[%clk 0:03:04.5]} 8...
Nc6 {[%clk 0:03:02.3]} 9. Bf1 {[%clk 0:03:02.1]} 9... Rb8 {[%clk 0:02:59.5]} 10.
a4 {[%clk 0:03:00.5]} 10... a6 {[%clk 0:02:59.2]} 11. e5 {[%clk 0:02:42.3]}
11... dxe5 {[%clk 0:02:57.3]} 12. Nxe5 {[%clk 0:02:43.3]} 12... Nxe5 {[%clk
0:02:54.9]} 13. Rxe5 {[%clk 0:02:43.9]} 13... b6 {[%clk 0:02:49.8]} 14. Re1
{[%clk 0:02:34.1]} 14... Be6 {[%clk 0:02:45.7]} 15. h3 {[%clk 0:02:30.5]} 15...
Qc7 {[%clk 0:02:42]} 16. Qc2 {[%clk 0:02:27.5]} 16... b5 {[%clk 0:02:40.5]} 17.
Nf3 {[%clk 0:02:23]} 17... Rfc8 {[%clk 0:02:34.6]} 18. Ng5 {[%clk 0:02:15.9]}
18... Bd5 {[%clk 0:02:33.3]} 19. c4 {[%clk 0:02:16]} 19... bxc4 {[%clk
0:02:28.7]} 20. dxc4 {[%clk 0:02:15.6]} 20... Bb7 {[%clk 0:02:25]} 21. Ra3
{[%clk 0:01:51.3]} 21... Rd8 {[%clk 0:02:18.6]} 22. Rae3 {[%clk 0:01:38.8]}
22... e6 {[%clk 0:02:17.7]} 23. Rb3 {[%clk 0:01:22.7]} 23... Bc6 {[%clk
0:02:10.8]} 24. Rxb8 {[%clk 0:01:11.9]} 24... Rxb8 {[%clk 0:02:12.7]} 25. b3
{[%clk 0:01:12.8]} 25... Qb7 {[%clk 0:02:08.1]} 26. Re3 {[%clk 0:01:01.9]} 26...
Rd8 {[%clk 0:02:02.2]} 27. Rd3 {[%clk 0:00:57]} 27... Qc8 {[%clk 0:01:45.8]} 28.
Rxd8+ {[%clk 0:00:50.3]} 28... Qxd8 {[%clk 0:01:47.7]} 29. Qd3 {[%clk
0:00:50.9]} 29... Qxd3 {[%clk 0:01:44]} 30. Bxd3 {[%clk 0:00:51.6]} 30... h6
{[%clk 0:01:43.9]} 31. Nf3 {[%clk 0:00:49.3]} 31... Ne4 {[%clk 0:01:44.2]} 32.
Nd2 {[%clk 0:00:44.4]} 32... Nc3 {[%clk 0:01:35.8]} 33. Ba3 {[%clk 0:00:37.7]}
33... Bd4 {[%clk 0:01:31]} 34. Kf1 {[%clk 0:00:33.6]} 34... Nd1 {[%clk
0:01:25.9]} 35. Be4 {[%clk 0:00:17.3]} 35... Bd7 {[%clk 0:01:13.7]} 36. f4
{[%clk 0:00:18.1]} 36... Nc3 {[%clk 0:00:57.7]} 37. Bf3 {[%clk 0:00:14]} 37...
Kf8 {[%clk 0:00:52.6]} 38. a5 {[%clk 0:00:15]} 38... Bc8 {[%clk 0:00:50.9]} 39.
Ne4 {[%clk 0:00:14.5]} 39... Nxe4 {[%clk 0:00:49.2]} 40. Bxe4 {[%clk 0:00:15.7]}
40... f5 {[%clk 0:00:47.7]} 41. Bc6 {[%clk 0:00:16]} 41... Ke7 {[%clk
0:00:48.4]} 42. b4 {[%clk 0:00:16.4]} 42... cxb4 {[%clk 0:00:45.5]} 43. Bxb4+
{[%clk 0:00:17.6]} 43... Kd8 {[%clk 0:00:44]} 44. Bd6 {[%clk 0:00:18.3]} 44...
Bc3 {[%clk 0:00:42.8]} 45. Bf8 {[%clk 0:00:12.9]} 45... h5 {[%clk 0:00:39.3]}
46. Ke2 {[%clk 0:00:05.3]} 46... Bxa5 {[%clk 0:00:40.6]} 47. Kd3 {[%clk
0:00:06.5]} 47... Bc7 {[%clk 0:00:41.2]} 48. Kd4 {[%clk 0:00:07.6]} 48... Bxf4
{[%clk 0:00:41.5]} 49. Kc5 {[%clk 0:00:07.1]} 49... a5 {[%clk 0:00:40.1]} 50.
Kb5 {[%clk 0:00:03.6]} 50... Bc7 {[%clk 0:00:40.8]} 51. c5 {[%clk 0:00:02.2]}
51... Bd7 {[%clk 0:00:35]} 0-1

[Event "*** Titled Tuesday 3|2 Blitz"]
[Site "Chess.com"]
[Date "2016.07.05"]
[Round "3"]
[White "Boryboy"]
[Black "IamSchrodingersCat"]
[Result "1/2-1/2"]
[WhiteElo "2494"]
[BlackElo "2235"]
[TimeControl "180+2"]
[EndTime "17:37:28 PDT"]
[Termination "Game drawn - insufficient material"]

1. d4 {[%clk 0:03:01.9]} 1... Nf6 {[%clk 0:03:00.5]} 2. Nf3 {[%clk 0:03:03.1]}
2... g6 {[%clk 0:03:00.8]} 3. g3 {[%clk 0:03:04.4]} 3... Bg7 {[%clk 0:03:01.8]}
4. Bg2 {[%clk 0:03:06.3]} 4... O-O {[%clk 0:03:03.3]} 5. O-O {[%clk 0:03:08]}
5... d6 {[%clk 0:03:04.8]} 6. a4 {[%clk 0:03:08.8]} 6... Nbd7 {[%clk 0:03:05]}
7. a5 {[%clk 0:03:10.1]} 7... a6 {[%clk 0:03:03.8]} 8. Nc3 {[%clk 0:03:09.7]}
8... e5 {[%clk 0:03:04.3]} 9. e4 {[%clk 0:03:06.7]} 9... exd4 {[%clk 0:03:03.9]}
10. Nxd4 {[%clk 0:03:00.3]} 10... Re8 {[%clk 0:03:05.8]} 11. Re1 {[%clk
0:02:47.1]} 11... Nc5 {[%clk 0:03:05.1]} 12. h3 {[%clk 0:02:47.4]} 12... h6
{[%clk 0:03:04.2]} 13. Ra3 {[%clk 0:02:45.6]} 13... Ne6 {[%clk 0:03:00.7]} 14.
Be3 {[%clk 0:02:44.5]} 14... Nc5 {[%clk 0:02:55.9]} 15. Bf4 {[%clk 0:02:33.4]}
15... Ne6 {[%clk 0:02:54]} 16. Nxe6 {[%clk 0:02:34.1]} 16... Rxe6 {[%clk
0:02:44.8]} 17. Qd2 {[%clk 0:02:32.4]} 17... Kh7 {[%clk 0:02:32.6]} 18. Kh2
{[%clk 0:02:28]} 18... Re8 {[%clk 0:02:24.6]} 19. e5 {[%clk 0:02:16.9]} 19...
Nh5 {[%clk 0:01:58.7]} 20. Rb3 {[%clk 0:01:38.7]} 20... Nxf4 {[%clk 0:01:48.5]}
21. gxf4 {[%clk 0:01:40.6]} 21... Rb8 {[%clk 0:01:35.5]} 22. Rb4 {[%clk
0:01:27.4]} 22... dxe5 {[%clk 0:01:16.8]} 23. Qxd8 {[%clk 0:01:27.8]} 23... Rxd8
{[%clk 0:01:18.7]} 24. fxe5 {[%clk 0:01:29.5]} 24... Rd2 {[%clk 0:01:19]} 25.
Rc4 {[%clk 0:01:23.8]} 25... c6 {[%clk 0:01:10.3]} 26. Kg1 {[%clk 0:01:04]}
26... Rxc2 {[%clk 0:01:03.4]} 27. Rb4 {[%clk 0:01:05.3]} 27... Bf8 {[%clk
0:00:54.9]} 28. Rf4 {[%clk 0:00:58]} 28... Be6 {[%clk 0:00:53.3]} 29. Re2 {[%clk
0:00:59.2]} 29... Rxe2 {[%clk 0:00:35.3]} 30. Nxe2 {[%clk 0:01:01.1]} 30... Bg7
{[%clk 0:00:32.7]} 31. Re4 {[%clk 0:00:57.6]} 31... Bd5 {[%clk 0:00:29.5]} 32.
Re3 {[%clk 0:00:58.2]} 32... Bxg2 {[%clk 0:00:28.2]} 33. Kxg2 {[%clk 0:01:00.1]}
33... Rd8 {[%clk 0:00:28.8]} 34. Kf3 {[%clk 0:01:00]} 34... Rd5 {[%clk
0:00:29.7]} 35. e6 {[%clk 0:01:00.3]} 35... fxe6 {[%clk 0:00:29.1]} 36. Rxe6
{[%clk 0:01:02.2]} 36... Rxa5 {[%clk 0:00:30.2]} 37. Re7 {[%clk 0:00:59.3]}
37... Rb5 {[%clk 0:00:28.8]} 38. Nf4 {[%clk 0:01:00.7]} 38... Kg8 {[%clk
0:00:23.3]} 39. Ne6 {[%clk 0:00:59.9]} 39... Rf5+ {[%clk 0:00:19.5]} 40. Kg2
{[%clk 0:00:56.7]} 40... Rf7 {[%clk 0:00:21.4]} 41. Re8+ {[%clk 0:00:57.5]}
41... Kh7 {[%clk 0:00:22.7]} 42. b4 {[%clk 0:00:55.8]} 42... g5 {[%clk
0:00:23.2]} 43. Rb8 {[%clk 0:00:53.9]} 43... Be5 {[%clk 0:00:22.8]} 44. Re8
{[%clk 0:00:53.1]} 44... Bg7 {[%clk 0:00:23.5]} 45. Nd8 {[%clk 0:00:53.6]} 45...
Rd7 {[%clk 0:00:23]} 46. Ne6 {[%clk 0:00:54.3]} 46... Kg6 {[%clk 0:00:22.2]} 47.
Nc5 {[%clk 0:00:54.8]} 47... Rf7 {[%clk 0:00:21.5]} 48. Ne6 {[%clk 0:00:54.5]}
48... h5 {[%clk 0:00:20.2]} 49. f3 {[%clk 0:00:51.8]} 49... Rd7 {[%clk
0:00:19.7]} 50. Nc5 {[%clk 0:00:51.8]} 50... Rd2+ {[%clk 0:00:18.4]} 51. Kf1
{[%clk 0:00:52.3]} 51... Bd4 {[%clk 0:00:16.9]} 52. Nxb7 {[%clk 0:00:51.9]}
52... Rf2+ {[%clk 0:00:17.1]} 53. Ke1 {[%clk 0:00:49.9]} 53... Rxf3 {[%clk
0:00:19]} 54. Nd8 {[%clk 0:00:49.6]} 54... Re3+ {[%clk 0:00:17.4]} 55. Rxe3
{[%clk 0:00:50.5]} 55... Bxe3 {[%clk 0:00:19.3]} 56. Nxc6 {[%clk 0:00:52.4]}
56... g4 {[%clk 0:00:18]} 57. hxg4 {[%clk 0:00:53.5]} 57... hxg4 {[%clk
0:00:19.9]} 58. Nb8 {[%clk 0:00:54.8]} 58... Bd4 {[%clk 0:00:20.3]} 59. Nxa6
{[%clk 0:00:55.4]} 59... Kf5 {[%clk 0:00:21.5]} 60. Kf1 {[%clk 0:00:56.9]} 60...
Ke4 {[%clk 0:00:22.2]} 61. Kg2 {[%clk 0:00:58.5]} 61... Kd5 {[%clk 0:00:23.2]}
62. b5 {[%clk 0:00:59]} 62... Kc4 {[%clk 0:00:23.5]} 63. Nc7 {[%clk 0:01:00.6]}
63... Bb6 {[%clk 0:00:23.5]} 64. Ne6 {[%clk 0:01:01.1]} 64... Kxb5 {[%clk
0:00:22.1]} 65. Kg3 {[%clk 0:01:02.6]} 65... Bc7+ {[%clk 0:00:23.6]} 66. Kxg4
{[%clk 0:01:04]} 66... Bf4 {[%clk 0:00:22.9]} 67. Kf5 {[%clk 0:01:04]} 67... Be5
{[%clk 0:00:24.2]} 68. Ke4 {[%clk 0:01:05.4]} 68... Bf4 {[%clk 0:00:26.1]} 69.
Kd5 {[%clk 0:01:06.7]} 69... Be5 {[%clk 0:00:28]} 70. Ng5 {[%clk 0:01:07.3]}
70... Bf4 {[%clk 0:00:29.2]} 71. Nf3 {[%clk 0:01:08.1]} 71... Be5 {[%clk
0:00:31.1]} 72. Ne1 {[%clk 0:01:09.5]} 72... Bf4 {[%clk 0:00:32.1]} 73. Nc2
{[%clk 0:01:11.2]} 73... Be5 {[%clk 0:00:33.4]} 74. Na3+ {[%clk 0:01:11.6]}
74... Kb4 {[%clk 0:00:34.8]} 75. Nc2+ {[%clk 0:01:11.8]} 75... Kb5 {[%clk
0:00:36.4]} 76. Ke4 {[%clk 0:01:12.6]} 76... Bd4 {[%clk 0:00:37.1]} 77. Kd3
{[%clk 0:01:13.7]} 77... Bc3 {[%clk 0:00:36.4]} 78. Ne3 {[%clk 0:01:14.4]} 78...
Bd4 {[%clk 0:00:37.8]} 79. Nd5 {[%clk 0:01:15.1]} 79... Bc3 {[%clk 0:00:39.7]}
80. Nxc3+ {[%clk 0:01:15.6]} 1/2-1/2

[Event "*** Titled Tuesday 3|2 Blitz"]
[Site "Chess.com"]
[Date "2016.07.05"]
[Round "3"]
[White "aripov96"]
[Black "Cayse"]
[Result "0-1"]
[WhiteElo "2280"]
[BlackElo "2577"]
[TimeControl "180+2"]
[EndTime "17:37:38 PDT"]
[Termination "Cayse won by resignation"]

1. c4 {[%clk 0:03:00.8]} 1... Nf6 {[%clk 0:03:00.3]} 2. Nc3 {[%clk 0:03:01.6]}
2... e5 {[%clk 0:03:01.4]} 3. g3 {[%clk 0:03:02.6]} 3... c6 {[%clk 0:03:02.5]}
4. Bg2 {[%clk 0:03:02]} 4... d5 {[%clk 0:03:02.9]} 5. cxd5 {[%clk 0:03:03]} 5...
cxd5 {[%clk 0:03:03.1]} 6. d4 {[%clk 0:03:04]} 6... e4 {[%clk 0:03:02.2]} 7. Bg5
{[%clk 0:03:03.5]} 7... Nbd7 {[%clk 0:02:59.2]} 8. Nh3 {[%clk 0:02:54.5]} 8...
h6 {[%clk 0:02:55]} 9. Bxf6 {[%clk 0:02:55]} 9... Nxf6 {[%clk 0:02:56.9]} 10.
O-O {[%clk 0:02:54.4]} 10... Bd6 {[%clk 0:02:56.1]} 11. e3 {[%clk 0:02:51.7]}
11... O-O {[%clk 0:02:47.2]} 12. f3 {[%clk 0:02:50.2]} 12... exf3 {[%clk
0:02:43.5]} 13. Qxf3 {[%clk 0:02:51.7]} 13... Bg4 {[%clk 0:02:39.4]} 14. Qf2
{[%clk 0:02:49.4]} 14... Bb4 {[%clk 0:02:34.8]} 15. Nf4 {[%clk 0:02:47.1]} 15...
Bxc3 {[%clk 0:02:33.9]} 16. bxc3 {[%clk 0:02:49]} 16... Rc8 {[%clk 0:02:34.3]}
17. Qb2 {[%clk 0:02:37.3]} 17... Rc7 {[%clk 0:02:18.5]} 18. Qb3 {[%clk
0:02:34.1]} 18... Rd7 {[%clk 0:02:13.5]} 19. c4 {[%clk 0:02:29.5]} 19... dxc4
{[%clk 0:02:13.9]} 20. Qxc4 {[%clk 0:02:30.4]} 20... Rc7 {[%clk 0:02:14.4]} 21.
Qa4 {[%clk 0:02:25.7]} 21... Qe7 {[%clk 0:02:14.4]} 22. Rae1 {[%clk 0:02:24.4]}
22... b6 {[%clk 0:01:58.3]} 23. Qb3 {[%clk 0:02:16.4]} 23... Rd8 {[%clk
0:01:54.6]} 24. Ng6 {[%clk 0:02:02.1]} 24... Qe6 {[%clk 0:01:50]} 25. Ne5 {[%clk
0:01:58.6]} 25... Qxb3 {[%clk 0:01:50]} 26. axb3 {[%clk 0:02:00.5]} 26... Be6
{[%clk 0:01:51.3]} 27. b4 {[%clk 0:01:47.6]} 27... Bd5 {[%clk 0:01:52.4]} 28. e4
{[%clk 0:01:42.9]} 28... Bc4 {[%clk 0:01:45.1]} 29. Nxc4 {[%clk 0:01:31.7]}
29... Rxc4 {[%clk 0:01:45.8]} 30. e5 {[%clk 0:01:27]} 30... Nd5 {[%clk
0:01:46.6]} 31. b5 {[%clk 0:01:19.1]} 31... Rxd4 {[%clk 0:01:46.9]} 32. e6
{[%clk 0:01:11.7]} 32... fxe6 {[%clk 0:01:47.4]} 33. Rxe6 {[%clk 0:01:13.6]}
33... Nf6 {[%clk 0:01:47.9]} 34. Bc6 {[%clk 0:01:09.4]} 34... Rc4 {[%clk
0:01:34.2]} 35. Re7 {[%clk 0:01:05.3]} 35... a5 {[%clk 0:01:30.6]} 36. Rb7
{[%clk 0:01:02.2]} 36... Rc2 {[%clk 0:01:25.1]} 37. Rf2 {[%clk 0:00:57.6]} 37...
Rd1+ {[%clk 0:00:48]} 38. Kg2 {[%clk 0:00:55.5]} 38... Rcc1 {[%clk 0:00:40.8]}
39. Rxb6 {[%clk 0:00:51]} 39... Rg1+ {[%clk 0:00:36.8]} 40. Kf3 {[%clk
0:00:50.7]} 40... Rc3+ {[%clk 0:00:36.4]} 41. Kf4 {[%clk 0:00:47.7]} 41... Rb1
{[%clk 0:00:25.5]} 42. Ra6 {[%clk 0:00:43.5]} 42... Re1 {[%clk 0:00:14.2]} 43.
Rd2 {[%clk 0:00:40.7]} 43... Kf7 {[%clk 0:00:11.5]} 44. Rxa5 {[%clk 0:00:35.3]}
44... g5+ {[%clk 0:00:12]} 45. Kf5 {[%clk 0:00:30.2]} 45... Rc5+ {[%clk
0:00:12.9]} 46. Bd5+ {[%clk 0:00:27.3]} 46... Nxd5 {[%clk 0:00:12.8]} 47. Ra7+
{[%clk 0:00:17.7]} 47... Ne7+ {[%clk 0:00:13.2]} 48. Kg4 {[%clk 0:00:19.1]}
48... Rxb5 {[%clk 0:00:13.9]} 49. Rf2+ {[%clk 0:00:18.2]} 49... Kg7 {[%clk
0:00:13.3]} 50. Rc2 {[%clk 0:00:15]} 50... Rbe5 {[%clk 0:00:14]} 51. h4 {[%clk
0:00:14.9]} 51... R1e4+ {[%clk 0:00:14.6]} 52. Kh3 {[%clk 0:00:15.9]} 52... g4+
{[%clk 0:00:16]} 53. Kg2 {[%clk 0:00:17.2]} 53... Re2+ {[%clk 0:00:16.8]} 54.
Rxe2 {[%clk 0:00:18.9]} 54... Rxe2+ {[%clk 0:00:18.4]} 55. Kf1 {[%clk
0:00:20.8]} 55... Re4 {[%clk 0:00:19.6]} 56. Kf2 {[%clk 0:00:22.5]} 56... h5
{[%clk 0:00:20.5]} 57. Ra5 {[%clk 0:00:23.1]} 57... Kg6 {[%clk 0:00:21.1]} 58.
Rg5+ {[%clk 0:00:24.2]} 58... Kh6 {[%clk 0:00:22]} 59. Kf1 {[%clk 0:00:24.9]}
59... Ng6 {[%clk 0:00:22.6]} 60. Kf2 {[%clk 0:00:25.9]} 60... Re5 {[%clk
0:00:23.5]} 61. Rxe5 {[%clk 0:00:25.9]} 61... Nxe5 {[%clk 0:00:24.1]} 62. Ke3
{[%clk 0:00:27.6]} 62... Kg6 {[%clk 0:00:25.4]} 63. Kf4 {[%clk 0:00:29.5]} 63...
Kf6 {[%clk 0:00:26.8]} 64. Ke4 {[%clk 0:00:31.1]} 64... Nf7 {[%clk 0:00:28.1]}
65. Kf4 {[%clk 0:00:33]} 65... Nh6 {[%clk 0:00:29.6]} 66. Ke4 {[%clk 0:00:34.4]}
66... Ng8 {[%clk 0:00:29.2]} 67. Kf4 {[%clk 0:00:36.3]} 67... Ne7 {[%clk
0:00:30.5]} 68. Ke4 {[%clk 0:00:37.7]} 68... Ng6 {[%clk 0:00:31.7]} 69. Ke3
{[%clk 0:00:38.5]} 69... Ke5 {[%clk 0:00:32.9]} 70. Kd3 {[%clk 0:00:40]} 70...
Ne7 {[%clk 0:00:32.8]} 71. Ke3 {[%clk 0:00:41.9]} 71... Nf5+ {[%clk 0:00:34.5]}
72. Kf2 {[%clk 0:00:43]} 72... Kd4 {[%clk 0:00:35.7]} 73. Kg2 {[%clk 0:00:44.1]}
73... Ke3 {[%clk 0:00:36.9]} 74. Kh2 {[%clk 0:00:45.1]} 74... Kf3 {[%clk
0:00:38]} 75. Kg1 {[%clk 0:00:46.5]} 75... Kxg3 {[%clk 0:00:39.3]} 76. Kh1
{[%clk 0:00:48.4]} 76... Kxh4 {[%clk 0:00:40.5]} 0-1